bitfinex-derivatives/quotes_BTCF0:USTF0_20251120
["timestamp","ask_amount","ask_price","bid_price","bid_amount"]
[1763613214533,0.41025267,92402.0,92401.0,0.04330001]
[1763613216425,0.41025267,92402.0,92401.0,0.02217001]
[1763613218228,0.36553267,92402.0,92401.0,1e-08]
[1763613226043,0.41025267,92402.0,92401.0,0.04330001]
[1763613227326,0.36553267,92402.0,92401.0,1e-08]
[1763613232039,0.46989267,92402.0,92401.0,1e-08]
[1763613241738,0.52879856,92402.0,92401.0,1e-08]
[1763613262975,0.46958856,92402.0,92401.0,0.04439001]
[1763613264068,0.46958856,92402.0,92401.0,0.04658804]
[1763613264668,0.41068267,92402.0,92401.0,0.15491244]
[1763613264863,0.38815267,92402.0,92401.0,0.19391249]
[1763613265070,0.41068267,92402.0,92401.0,0.08558809]
[1763613265468,0.41068267,92402.0,92401.0,0.04658804]
[1763613266168,0.41068267,92402.0,92401.0,0.08558809]
[1763613266476,0.41068267,92402.0,92401.0,0.04658804]
[1763613271674,0.41068267,92402.0,92401.0,0.02351804]
[1763613273081,0.40968267,92402.0,92401.0,0.04528804]
[1763613273376,0.40968267,92402.0,92401.0,0.04728804]
[1763613273773,0.40668267,92402.0,92401.0,0.04928804]
[1763613275075,0.40668267,92402.0,92401.0,0.15561244]
[1763613275280,0.40668267,92402.0,92401.0,0.15761244]
[1763613275881,0.40668267,92402.0,92401.0,0.04728804]
[1763613276081,0.40668267,92402.0,92401.0,0.04928804]
[1763613277884,0.76748267,92402.0,92401.0,0.04928804]
[1763613279983,0.76748267,92402.0,92401.0,0.05035804]
[1763613289695,0.76748267,92402.0,92401.0,0.00619804]
[1763613290897,0.76748267,92402.0,92401.0,0.00400001]
[1763613294394,0.76748267,92402.0,92401.0,0.04816001]
[1763613294995,0.76748267,92402.0,92401.0,0.00400001]
[1763613296997,0.76748267,92402.0,92401.0,0.02532001]
[1763613297192,0.76748267,92402.0,92401.0,0.00400001]
[1763613300990,0.76748267,92402.0,92401.0,0.02532001]
[1763613302800,0.76748267,92402.0,92401.0,0.00400001]
[1763613304698,0.76748267,92402.0,92401.0,0.00300001]
[1763613306596,0.76748267,92402.0,92401.0,0.00200001]
[1763613306799,0.76748267,92402.0,92401.0,0.00400001]
[1763613307504,0.76748267,92402.0,92401.0,0.04861001]
[1763613309305,0.76748267,92402.0,92401.0,0.04961001]
[1763613310506,0.76748267,92402.0,92401.0,0.05180804]
[1763613324223,0.76748267,92402.0,92401.0,0.00719804]
[1763613324409,0.76748267,92402.0,92401.0,0.00500001]
[1763613327522,0.76748267,92402.0,92388.0,0.01368]
[1763613327523,0.108342,92386.0,92385.0,0.0584969]
[1763613327706,0.04472,92384.0,92383.0,0.0584969]
[1763613327906,0.04472,92384.0,92373.0,0.09140465]
[1763613327907,0.1530655,92383.0,92382.0,0.0584969]
[1763613328111,0.1530655,92383.0,92377.0,0.0801269]
[1763613328112,0.1530713,92378.0,92377.0,0.0801269]
[1763613328317,0.51460397,92378.0,92377.0,0.02382803]
[1763613328514,0.40625267,92378.0,92377.0,0.04590803]
[1763613329611,0.41125267,92378.0,92377.0,0.04590803]
[1763613329913,0.41125267,92378.0,92377.0,0.00219803]
[1763613330112,0.41125267,92378.0,92377.0,0.04590803]
[1763613331012,0.41025267,92378.0,92377.0,0.04590803]
[1763613331216,0.41025267,92378.0,92377.0,0.04790803]
[1763613331417,0.40625267,92378.0,92377.0,0.04571]
[1763613331617,0.40625267,92378.0,92377.0,0.04871]
[1763613331817,0.40625267,92378.0,92377.0,0.04671]
[1763613332018,0.40625267,92378.0,92377.0,0.04871]
[1763613332622,0.40625267,92378.0,92377.0,0.04671]
[1763613332917,0.40625267,92378.0,92377.0,0.04871]
[1763613333224,0.40625267,92378.0,92377.0,0.005]
[1763613334128,0.04391,92373.0,92372.0,0.04373211]
[1763613334329,0.04464267,92373.0,92372.0,0.04373211]
[1763613334724,0.15299987,92373.0,92372.0,8.211e-05]
[1763613335415,0.1522719,92369.0,92366.0,3e-06]
[1763613335617,0.04391,92352.0,92351.0,0.02144]
[1763613335818,0.04391,92350.0,92349.0,0.04365]
[1763613336017,0.04464267,92350.0,92349.0,0.04584803]
[1763613337122,0.04473535,92350.0,92349.0,0.04584803]
[1763613337921,0.04473535,92350.0,92349.0,0.04784803]
[1763613338121,0.04473535,92350.0,92349.0,0.04984803]
[1763613338827,0.04473535,92350.0,92349.0,0.04584803]
[1763613339018,0.00082535,92350.0,92349.0,0.04784803]
[1763613340724,0.00082535,92350.0,92349.0,0.15623343]
[1763613341223,0.04473535,92350.0,92349.0,0.04784803]
[1763613347452,0.04473535,92350.0,92349.0,0.04565]
[1763613348651,0.04473535,92350.0,92349.0,0.02344]
[1763613348852,0.04473535,92350.0,92349.0,0.002]
[1763613352451,0.04473535,92350.0,92349.0,0.02344]
[1763613352651,0.04473535,92350.0,92349.0,0.002]
[1763613353160,0.04473535,92350.0,92349.0,0.02344]
[1763613353658,0.04473535,92350.0,92349.0,0.04565]
[1763613356461,0.04473535,92350.0,92349.0,0.002]
[1763613358859,0.04473535,92350.0,92349.0,0.04565]
[1763613359060,0.04473535,92350.0,92349.0,0.002]
[1763613360264,0.76633535,92350.0,92349.0,0.002]
[1763613360460,0.1523048,92341.0,92340.0,0.00016234]
[1763613360663,0.40653159,92341.0,92340.0,0.03534]
[1763613360965,0.51383747,92341.0,92340.0,0.05678]
[1763613361160,0.51383747,92341.0,92340.0,0.04365]
[1763613361370,0.51383747,92341.0,92332.0,0.02144]
[1763613361371,0.1523142,92333.0,92332.0,0.02144]
[1763613361662,0.51384687,92333.0,92332.0,0.04365]
[1763613362362,0.40544267,92333.0,92332.0,0.04365]
[1763613362556,0.40544267,92333.0,92332.0,0.04584803]
[1763613363557,0.40944267,92333.0,92332.0,0.04584803]
[1763613363865,0.40944267,92333.0,92325.0,0.0134]
[1763613363866,0.1514712,92327.0,92326.0,0.04464078]
[1763613364064,0.15229655,92327.0,92326.0,0.04683881]
[1763613364462,0.04388535,92327.0,92326.0,0.04683881]
[1763613364863,0.00082535,92327.0,92326.0,0.04683881]
[1763613365372,0.00382535,92327.0,92326.0,0.04683881]
[1763613365668,0.00482535,92327.0,92326.0,0.04683881]
[1763613365866,0.02654535,92327.0,92326.0,0.04683881]
[1763613366068,0.04788535,92327.0,92326.0,0.04683881]
[1763613367268,0.02654535,92327.0,92326.0,0.04683881]
[1763613367871,0.00482535,92327.0,92326.0,0.04683881]
[1763613371066,0.3608,92333.0,92332.0,0.04437]
[1763613371275,0.3608,92333.0,92332.0,0.25941333]
[1763613371971,0.3608,92333.0,92332.0,0.31791023]
[1763613372171,0.3618,92333.0,92332.0,0.31791023]
[1763613372372,0.3618,92333.0,92332.0,0.25941333]
[1763613372958,0.3658,92333.0,92332.0,0.25941333]
[1763613373758,0.40886,92333.0,92332.0,0.15100803]
[1763613374267,0.40886,92333.0,92332.0,0.20942447]
[1763613375270,0.40886,92333.0,92332.0,0.15100803]
[1763613376569,0.40886,92333.0,92332.0,0.15096803]
[1763613377373,0.40886,92333.0,92332.0,0.20940453]
[1763613378669,0.3658,92333.0,92332.0,0.15096803]
[1763613378976,0.38752,92333.0,92332.0,0.15096803]
[1763613379275,0.40886,92333.0,92332.0,0.15096803]
[1763613385572,0.04306,92327.0,92326.0,0.00027078]
[1763613385773,0.04306,92327.0,92326.0,0.04464078]
[1763613386183,0.04306,92327.0,92326.0,0.10310491]
[1763613386771,0.04406,92327.0,92326.0,0.10310491]
[1763613387080,0.04706,92327.0,92326.0,0.10310491]
[1763613388279,0.04706,92327.0,92326.0,0.04464078]
[1763613390482,0.04706,92327.0,92326.0,0.10311584]
[1763613392375,0.04706,92327.0,92326.0,0.04464078]
[1763613393174,0.1524124,92326.0,92325.0,0.07528584]
[1763613393880,0.1524124,92326.0,92325.0,0.05311584]
[1763613394088,0.1524124,92326.0,92325.0,0.09892387]
[1763613394283,0.044,92326.0,92325.0,0.09892387]
[1763613394486,0.004,92327.0,92326.0,0.1520224]
[1763613394785,0.003,92327.0,92326.0,0.15422043]
[1763613395290,0.3608,92331.0,92330.0,0.1647177]
[1763613395482,0.3608,92331.0,92330.0,0.27135573]
[1763613396487,0.3648,92331.0,92330.0,0.27135573]
[1763613397690,0.38611,92331.0,92330.0,0.27135573]
[1763613397880,0.38311,92331.0,92330.0,0.27135573]
[1763613398081,0.38611,92331.0,92330.0,0.27135573]
[1763613398990,0.3648,92331.0,92330.0,0.27135573]
[1763613399376,0.004,92331.0,92330.0,0.27135573]
[1763613399581,0.3608,92345.0,92335.0,0.1647118]
[1763613399778,0.3608,92345.0,92344.0,0.04361]
[1763613400088,0.4048,92352.0,92351.0,0.151993]
[1763613400286,0.4048,92352.0,92351.0,0.15419103]
[1763613402086,0.4088,92352.0,92351.0,0.15419103]
[1763613402591,0.4058,92352.0,92351.0,0.15419103]
[1763613402794,0.42275,92352.0,92351.0,0.04580803]
[1763613403595,0.4098,92352.0,92351.0,0.15419103]
[1763613404792,0.4088,92352.0,92351.0,0.15419103]
[1763613404992,0.4098,92352.0,92351.0,0.15419103]
[1763613406196,0.4058,92352.0,92351.0,0.15419103]
[1763613406494,0.4098,92352.0,92351.0,0.19309322]
[1763613407296,0.4088,92352.0,92351.0,0.19309322]
[1763613407496,0.4098,92352.0,92351.0,0.19309322]
[1763613407692,0.4098,92352.0,92351.0,0.15419103]
[1763613408585,0.4098,92352.0,92351.0,0.19308876]
[1763613410091,0.4098,92352.0,92351.0,0.15419103]
[1763613410893,0.4088,92352.0,92351.0,0.15419103]
[1763613411095,0.4098,92352.0,92351.0,0.15419103]
[1763613412486,0.00016243,92361.0,92360.0,0.1644825]
[1763613412688,0.3608,92372.0,92365.0,0.1646766]
[1763613412891,0.3608,92372.0,92371.0,0.1519696]
[1763613413091,0.05695,92385.0,92384.0,0.1519543]
[1763613413387,0.044,92385.0,92384.0,0.25863233]
[1763613414599,0.045,92385.0,92384.0,0.25863233]
[1763613415095,0.048,92385.0,92384.0,0.25863233]
[1763613416094,0.045,92385.0,92384.0,0.25863233]
[1763613416400,0.048,92385.0,92384.0,0.25863233]
[1763613417896,0.048,92385.0,92384.0,0.15028803]
[1763613418093,0.045,92385.0,92384.0,0.15024803]
[1763613418390,0.047,92385.0,92384.0,0.15024803]
[1763613419294,0.048,92385.0,92384.0,0.15024803]
[1763613420001,0.047,92385.0,92384.0,0.15024803]
[1763613420203,0.048,92385.0,92384.0,0.15024803]
[1763613421098,0.004,92385.0,92384.0,0.15024803]
[1763613421896,0.04416243,92394.0,92393.0,0.1519438]
[1763613422101,0.04416243,92394.0,92393.0,0.25858183]
[1763613422497,0.00016243,92394.0,92393.0,0.25858183]
[1763613423604,0.36107055,92406.0,92405.0,0.1547297]
[1763613423799,0.40411055,92406.0,92405.0,0.26136773]
[1763613424392,0.38217055,92406.0,92405.0,0.26136773]
[1763613424596,0.36107055,92406.0,92405.0,0.26136773]
[1763613425108,0.36107055,92406.0,92405.0,1.76536773]
[1763613425809,0.38217055,92406.0,92405.0,1.76536773]
[1763613426303,0.40411055,92406.0,92405.0,1.76736773]
[1763613426904,0.40411055,92406.0,92405.0,1.65904803]
[1763613427608,0.52628905,92406.0,92405.0,0.11263803]
[1763613429510,0.52628905,92406.0,92405.0,0.11259803]
[1763613431705,0.52628905,92406.0,92405.0,0.13568803]
[1763613431905,0.52628905,92406.0,92405.0,0.15900803]
[1763613432210,0.52628905,92406.0,92405.0,0.13568803]
[1763613432412,0.41797055,92406.0,92405.0,0.15900803]
[1763613432600,0.41797055,92406.0,92405.0,0.05460803]
[1763613432804,0.41797055,92406.0,92405.0,0.15900803]
[1763613436610,0.36107055,92406.0,92405.0,0.15900803]
[1763613438107,0.00027055,92406.0,92405.0,0.15900803]
[1763613439106,0.36096206,92415.0,92414.0,0.1547192]
[1763613439312,0.36096206,92415.0,92414.0,0.26131723]
[1763613440216,0.38206206,92415.0,92414.0,0.26131723]
[1763613440610,0.36096206,92415.0,92414.0,0.26131723]
[1763613441714,0.36196206,92415.0,92414.0,0.26131723]
[1763613442111,0.00116206,92415.0,92414.0,0.26131723]
[1763613442313,0.00116206,92415.0,92414.0,0.27192952]
[1763613443217,0.00016206,92415.0,92414.0,0.27192952]
[1763613443418,0.00116206,92415.0,92414.0,0.27192952]
[1763613446713,0.02226206,92415.0,92414.0,0.27192952]
[1763613447307,0.04420206,92415.0,92414.0,0.27192952]
[1763613448821,0.04420206,92415.0,92414.0,0.15296803]
[1763613449516,0.04420206,92415.0,92414.0,0.21127305]
[1763613449822,0.04420206,92415.0,92414.0,0.10691305]
[1763613450025,0.04420206,92415.0,92414.0,0.21127305]
[1763613452326,0.04420206,92415.0,92414.0,0.15296803]
[1763613457523,0.02226206,92415.0,92414.0,0.15296803]
[1763613457828,0.04440206,92415.0,92414.0,0.15296803]
[1763613459828,0.04440206,92415.0,92414.0,0.04860803]
[1763613460029,0.04440206,92415.0,92414.0,0.15292803]
[1763613460421,0.04440206,92415.0,92414.0,0.04860803]
[1763613460622,0.04440206,92415.0,92414.0,0.15292803]
[1763613461632,0.40520206,92415.0,92414.0,0.02528803]
[1763613461840,0.1523289,92406.0,92405.0,0.08018782]
[1763613462128,0.1523382,92398.0,92396.0,0.05853016]
[1763613462333,0.1523382,92398.0,92397.0,0.10651803]
[1763613462628,0.5131382,92398.0,92397.0,0.10651803]
[1763613463232,0.40481,92398.0,92397.0,0.12833803]
[1763613463427,0.40481,92398.0,92397.0,0.15088803]
[1763613464328,0.40481,92398.0,92397.0,0.18980691]
[1763613464735,0.40481,92398.0,92397.0,0.15088803]
[1763613465734,0.40581,92398.0,92397.0,0.15088803]
[1763613466431,0.40581,92398.0,92397.0,0.18979737]
[1763613467137,0.40581,92398.0,92397.0,0.15088803]
[1763613468134,0.40481,92398.0,92397.0,0.15088803]
[1763613468337,0.40581,92398.0,92397.0,0.15088803]
[1763613468736,0.38367,92398.0,92397.0,0.15088803]
[1763613468934,0.40581,92398.0,92397.0,0.04656803]
[1763613469135,0.40481,92398.0,92397.0,0.15088803]
[1763613469343,0.40581,92398.0,92397.0,0.15088803]
[1763613470132,0.40581,92398.0,92397.0,0.20925585]
[1763613471736,0.001,92398.0,92397.0,0.20925585]
[1763613471934,0.40481,92406.0,92405.0,0.1526901]
[1763613472142,0.40481,92406.0,92405.0,0.25920813]
[1763613473046,0.40481,92406.0,92405.0,0.26120813]
[1763613473644,0.3608,92406.0,92405.0,0.26120813]
[1763613473842,0.40481,92406.0,92405.0,0.26120813]
[1763613474036,0.40481,92406.0,92405.0,0.26520813]
[1763613475148,0.40481,92406.0,92405.0,0.32352658]
[1763613477342,0.40481,92406.0,92405.0,0.26520813]
[1763613477650,0.3608,92406.0,92405.0,0.27178813]
[1763613479151,0.36096206,92415.0,92405.0,0.27178813]
[1763613479349,0.40497206,92415.0,92414.0,0.1915591]
[1763613479544,0.40497206,92415.0,92414.0,0.25923753]
[1763613480256,0.02203206,92415.0,92414.0,0.25923753]
[1763613480953,0.02203206,92415.0,92414.0,0.26323753]
[1763613481156,0.04417206,92415.0,92414.0,0.26323753]
[1763613481551,0.04517206,92415.0,92414.0,0.25923753]
[1763613481755,0.05895206,92415.0,92414.0,0.15092803]
[1763613482056,0.05895206,92415.0,92414.0,0.2092481]
[1763613485256,0.05895206,92415.0,92414.0,0.15092803]
[1763613486860,0.05895206,92415.0,92414.0,0.0605348]
[1763613487053,0.05895206,92415.0,92414.0,0.10651803]
[1763613488956,0.05895206,92415.0,92414.0,0.00219803]
[1763613489156,0.05895206,92415.0,92414.0,0.10651803]
[1763613489454,0.1083095,92414.0,92411.0,0.05833677]
[1763613489661,0.152833,92411.0,92410.0,0.05833677]
[1763613489860,0.152833,92411.0,92405.0,0.1083195]
[1763613489861,0.04452,92409.0,92408.0,0.08031677]
[1763613490161,0.40532,92409.0,92408.0,0.1868348]
[1763613490356,0.40532,92409.0,92408.0,0.00219803]
[1763613490556,0.1528389,92406.0,92405.0,0.10432]
[1763613492262,0.1528424,92403.0,92402.0,0.05833677]
[1763613492463,0.1528424,92403.0,92402.0,0.10436]
[1763613493258,0.1528424,92403.0,92402.0,0.14327956]
[1763613493460,0.1528424,92403.0,92402.0,0.10536]
[1763613494356,0.1528424,92403.0,92402.0,0.14427849]
[1763613495867,0.04452,92403.0,92402.0,0.19070652]
[1763613497167,0.04452,92403.0,92402.0,0.15178803]
[1763613497759,0.04452,92403.0,92402.0,0.19070576]
[1763613498470,0.1528424,92403.0,92402.0,0.19070576]
[1763613498666,0.1528424,92403.0,92402.0,0.08634576]
[1763613498868,0.1528424,92403.0,92402.0,0.04211576]
[1763613499170,0.1528424,92403.0,92402.0,0.02617803]
[1763613499471,0.1528424,92403.0,92402.0,0.002]
[1763613499855,0.1528424,92403.0,92402.0,0.003]
[1763613500062,0.1528424,92403.0,92402.0,0.006]
[1763613500672,0.1664259,92400.0,92399.0,0.10436]
[1763613500868,0.5272259,92400.0,92399.0,0.10436]
[1763613501276,0.04452,92399.0,92398.0,0.03891773]
[1763613501472,0.04452,92399.0,92394.0,0.05833677]
[1763613501473,0.04452,92397.0,92393.0,0.03891773]
[1763613501674,0.04452,92397.0,92388.0,0.03891773]
[1763613502774,0.04452,92397.0,92396.0,0.00416234]
[1763613503169,0.04452,92397.0,92396.0,0.00616234]
[1763613517683,0.76612,92397.0,92396.0,0.00616234]
[1763613518883,0.76612,92397.0,92396.0,0.00129627]
[1763613519090,0.0442,92386.0,92385.0,0.03891773]
[1763613519284,0.1525506,92379.0,92377.0,0.05833677]
[1763613519480,0.1525506,92379.0,92370.0,0.1106197]
[1763613519481,0.1083529,92377.0,92375.0,0.03892125]
[1763613519681,0.1525564,92374.0,92371.0,0.03892125]
[1763613519886,0.5133564,92374.0,92367.0,0.03892125]
[1763613520080,0.5133564,92374.0,92369.0,0.03892125]
[1763613520286,0.5133564,92374.0,92365.0,0.05833677]
[1763613520493,0.5133564,92374.0,92364.0,0.11380896]
[1763613521294,0.5133564,92374.0,92364.0,0.22217636]
[1763613521594,0.5133564,92374.0,92373.0,0.00410035]
[1763613521990,0.5133564,92374.0,92373.0,0.00610035]
[1763613526295,0.1525811,92353.0,92352.0,0.05833677]
[1763613526493,0.0442,92351.0,92350.0,0.02189]
[1763613526790,0.0442,92351.0,92350.0,0.04413]
[1763613526993,0.0442,92351.0,92350.0,0.02189]
[1763613527691,0.152594,92342.0,92341.0,0.09960219]
[1763613527892,0.513394,92342.0,92341.0,0.04649037]
[1763613528695,0.515394,92342.0,92341.0,0.04649037]
[1763613528896,0.516394,92342.0,92341.0,0.04649037]
[1763613530193,0.408,92342.0,92341.0,0.04649037]
[1763613534000,0.409,92342.0,92341.0,0.04649037]
[1763613534401,0.406,92342.0,92341.0,0.04649037]
[1763613534704,0.409,92342.0,92341.0,0.04649037]
[1763613534898,0.408,92342.0,92341.0,0.04649037]
[1763613535096,0.409,92342.0,92341.0,0.04649037]
[1763613535894,0.408,92342.0,92341.0,0.04649037]
[1763613536092,0.409,92342.0,92341.0,0.04649037]
[1763613538606,0.408,92342.0,92341.0,0.04649037]
[1763613538810,0.409,92342.0,92341.0,0.04649037]
[1763613541501,0.3648,92342.0,92341.0,0.04649037]
[1763613541701,0.004,92342.0,92341.0,0.04649037]
[1763613542097,0.00010035,92351.0,92350.0,0.1614446]
[1763613542307,0.00010035,92351.0,92350.0,0.26800263]
[1763613543109,0.02275035,92351.0,92350.0,0.26800263]
[1763613543608,0.00010035,92351.0,92350.0,0.26800263]
[1763613543808,0.00310035,92351.0,92350.0,0.26800263]
[1763613544405,0.00310035,92351.0,92350.0,0.32625587]
[1763613545209,0.00410035,92351.0,92350.0,0.32625587]
[1763613545600,0.02675035,92351.0,92350.0,0.32625587]
[1763613546000,0.04849035,92351.0,92350.0,0.20887127]
[1763613546208,0.04549035,92351.0,92350.0,0.20887127]
[1763613546406,0.04849035,92351.0,92350.0,0.20887127]
[1763613547705,0.04849035,92351.0,92350.0,0.15061803]
[1763613552511,0.04849035,92351.0,92345.0,0.09091924]
[1763613552512,0.04439,92346.0,92345.0,0.0226]
[1763613552711,0.04439,92346.0,92345.0,0.15061803]
[1763613553823,0.04539,92346.0,92345.0,0.15061803]
[1763613554418,0.04739,92346.0,92345.0,0.15061803]
[1763613554814,0.04639,92346.0,92345.0,0.15061803]
[1763613555015,0.04739,92346.0,92345.0,0.15061803]
[1763613555913,0.04839,92346.0,92345.0,0.15061803]
[1763613556718,0.04739,92346.0,92345.0,0.15061803]
[1763613556918,0.04839,92346.0,92345.0,0.15061803]
[1763613559517,0.004,92346.0,92345.0,0.15061803]
[1763613559918,0.001,92346.0,92345.0,0.15061803]
[1763613560122,0.004,92346.0,92345.0,0.15061803]
[1763613561215,0.004,92346.0,92345.0,0.22854727]
[1763613562010,0.001,92346.0,92345.0,0.22854727]
[1763613562215,0.004,92346.0,92345.0,0.15061803]
[1763613563312,0.004,92346.0,92345.0,0.22854727]
[1763613563518,0.004,92346.0,92345.0,0.15061803]
[1763613565930,0.003,92346.0,92345.0,0.15061803]
[1763613566332,0.001,92346.0,92345.0,0.15061803]
[1763613566529,0.003,92346.0,92345.0,0.15061803]
[1763613566924,0.001,92346.0,92345.0,0.15061803]
[1763613567231,0.003,92346.0,92345.0,0.15061803]
[1763613577532,0.02409,92346.0,92345.0,0.15061803]
[1763613577733,0.04569,92346.0,92345.0,0.15061803]
[1763613580540,0.1540793,92346.0,92345.0,0.08017522]
[1763613580743,0.1540793,92346.0,92345.0,0.10655803]
[1763613581151,0.1540793,92346.0,92345.0,0.12870803]
[1763613582548,0.1540793,92346.0,92345.0,0.14995803]
[1763613582951,0.1540793,92346.0,92345.0,0.10655803]
[1763613583650,0.1540793,92346.0,92345.0,0.12870803]
[1763613585355,0.1540793,92346.0,92345.0,0.10655803]
[1763613585854,0.1540793,92346.0,92345.0,0.12870803]
[1763613586856,0.1540793,92346.0,92345.0,0.10655803]
[1763613587760,0.1540793,92346.0,92345.0,0.14995803]
[1763613587956,0.1540793,92346.0,92345.0,0.12870803]
[1763613590062,0.1540793,92346.0,92345.0,0.14995803]
[1763613591262,0.1540793,92346.0,92345.0,0.16499882]
[1763613591555,0.5148793,92346.0,92345.0,0.00219803]
[1763613592959,0.5148793,92346.0,92345.0,0.06063882]
[1763613593154,0.5148793,92346.0,92345.0,0.00219803]
[1763613594565,0.40649,92346.0,92345.0,0.00219803]
[1763613594758,0.40649,92346.0,92345.0,0.02434803]
[1763613594961,0.40649,92346.0,92345.0,0.08278882]
[1763613597066,0.40649,92346.0,92345.0,0.06063882]
[1763613597266,0.05437,92336.0,92335.0,0.07797719]
[1763613597564,0.05437,92336.0,92320.0,0.01343]
[1763613597565,0.04269,92327.0,92320.0,0.08724731]
[1763613597770,0.51200195,92327.0,92320.0,0.08724731]
[1763613597960,0.51200195,92327.0,92326.0,0.04367078]
[1763613598653,0.51400195,92327.0,92326.0,0.04367078]
[1763613598851,0.51400195,92327.0,92326.0,0.02242078]
[1763613599866,0.51500195,92327.0,92326.0,0.02242078]
[1763613600255,0.1511121,92318.0,92317.0,0.00016243]
[1763613600460,0.1511215,92310.0,92300.0,0.08724731]
[1763613600659,0.1511215,92310.0,92309.0,0.02223823]
[1763613600660,0.5119215,92310.0,92309.0,0.02223823]
[1763613600857,0.3608,92310.0,92309.0,0.04568626]
[1763613601052,0.1084265,92315.0,92309.0,0.04568626]
[1763613601257,0.40349,92318.0,92317.0,0.0434]
[1763613601470,0.40349,92318.0,92317.0,0.04559803]
[1763613601666,0.3608,92318.0,92317.0,0.04559803]
[1763613602457,0.40411,92318.0,92310.0,0.01343]
[1763613602663,0.04531,92311.0,92310.0,0.05638]
[1763613602864,0.04531,92311.0,92310.0,0.05857803]
[1763613603461,0.04531,92311.0,92310.0,0.04514803]
[1763613603666,0.04531,92311.0,92310.0,0.02332803]
[1763613603868,0.04631,92311.0,92310.0,0.04514803]
[1763613604465,0.04631,92311.0,92310.0,0.05857803]
[1763613608369,0.04631,92311.0,92310.0,0.02332803]
[1763613608558,0.04631,92311.0,92310.0,0.05857803]
[1763613609159,0.001,92311.0,92310.0,0.16700953]
[1763613609862,0.3608,92318.0,92317.0,0.1513733]
[1763613610067,0.3608,92333.0,92317.0,0.1513733]
[1763613610068,0.3608,92333.0,92326.0,0.04295]
[1763613610274,0.3608,92333.0,92326.0,0.04514803]
[1763613611470,0.00110035,92327.0,92326.0,0.04514803]
[1763613611664,0.02619035,92327.0,92326.0,0.04514803]
[1763613612168,0.04841035,92327.0,92326.0,0.00219803]
[1763613612475,0.04841035,92327.0,92326.0,0.04514803]
[1763613615376,0.02619035,92327.0,92326.0,0.04514803]
[1763613615671,0.04841035,92327.0,92326.0,0.04514803]
[1763613617167,0.04641035,92327.0,92326.0,0.04514803]
[1763613617362,0.04741035,92327.0,92326.0,0.04514803]
[1763613617587,0.04841035,92327.0,92326.0,0.15356073]
[1763613618076,0.02619035,92327.0,92326.0,0.15356073]
[1763613619175,0.02619035,92327.0,92326.0,0.04514803]
[1763613620976,0.02619035,92327.0,92300.0,0.1712303]
[1763613620977,0.1537404,92311.0,92310.0,0.05638]
[1763613621183,0.5145404,92311.0,92310.0,0.05857803]
[1763613622577,0.40611,92311.0,92310.0,0.05857803]
[1763613622782,0.38489,92311.0,92310.0,0.05857803]
[1763613623081,0.3618,92311.0,92310.0,0.05857803]
[1763613626378,0.3618,92311.0,92310.0,0.11689219]
[1763613626873,0.38489,92311.0,92310.0,0.11689219]
[1763613627382,0.40711,92311.0,92310.0,0.05857803]
[1763613628884,0.3618,92311.0,92310.0,0.05857803]
[1763613629087,0.3618,92311.0,92310.0,0.16700953]
[1763613630484,0.001,92311.0,92310.0,0.16700953]
[1763613630789,0.3608,92319.0,92318.0,0.1530421]
[1763613630977,0.3608,92319.0,92318.0,0.25968013]
[1763613631885,0.002,92319.0,92318.0,0.25968013]
[1763613632885,0.003,92319.0,92318.0,0.25968013]
[1763613633083,0.154961,92319.0,92318.0,0.10663803]
[1763613634279,0.154961,92319.0,92318.0,0.21004371]
[1763613634881,0.154961,92319.0,92318.0,0.05845568]
[1763613635076,0.04274,92318.0,92317.0,0.05845568]
[1763613635276,0.472221,92319.0,92316.0,0.05845568]
[1763613635277,0.1511633,92317.0,92316.0,0.05845568]
[1763613636480,0.1521633,92317.0,92316.0,0.05845568]
[1763613637579,0.1521633,92317.0,92316.0,0.06065371]
[1763613638090,0.1521633,92317.0,92316.0,0.00219803]
[1763613640174,0.1581415,92310.0,92309.0,8.823e-05]
[1763613640378,0.5189415,92310.0,92309.0,8.823e-05]
[1763613641782,0.5199415,92310.0,92309.0,8.823e-05]
[1763613641988,0.1511809,92302.0,92301.0,0.05848362]
[1763613642186,0.5119809,92302.0,92301.0,0.05848362]
[1763613642389,0.04274,92301.0,92300.0,0.05848362]
[1763613643078,0.02108,92299.0,92298.0,0.16692842]
[1763613643279,0.04274,92299.0,92298.0,0.19117645]
[1763613643480,0.04274,92299.0,92298.0,0.13269283]
[1763613643676,0.04274,92299.0,92298.0,0.15559283]
[1763613645090,0.04274,92299.0,92298.0,0.04714803]
[1763613645479,0.04374,92299.0,92298.0,0.04714803]
[1763613645685,0.04374,92299.0,92298.0,0.10558215]
[1763613647593,0.04374,92299.0,92298.0,0.08268215]
[1763613647988,0.04374,92299.0,92298.0,0.10558215]
[1763613649286,0.04374,92299.0,92298.0,0.04714803]
[1763613650794,0.04374,92299.0,92298.0,0.02424803]
[1763613652594,0.04374,92299.0,92298.0,0.02205]
[1763613654792,0.04374,92299.0,92298.0,0.04495]
[1763613656098,0.04374,92299.0,92298.0,0.15559363]
[1763613656298,0.04374,92299.0,92298.0,0.04714803]
[1763613660196,0.04374,92299.0,92298.0,0.04495]
[1763613661686,0.04274,92299.0,92298.0,0.04995]
[1763613662290,0.04274,92299.0,92298.0,0.05195]
[1763613665105,0.04274,92299.0,92298.0,0.007]
[1763613665595,0.04274,92299.0,92298.0,0.00599999]
[1763613667093,0.04274,92299.0,92298.0,0.05270802]
[1763613675212,0.40354,92299.0,92298.0,0.05270802]
[1763613675506,0.40354,92299.0,92298.0,0.11114214]
[1763613676213,0.40388,92299.0,92298.0,0.05270802]
[1763613676513,0.38184,92299.0,92298.0,0.05270802]
[1763613676714,0.3608,92299.0,92298.0,0.05270802]
[1763613678412,0.40388,92299.0,92298.0,0.05270802]
[1763613680814,0.40388,92299.0,92298.0,0.111227]
[1763613681014,0.40388,92299.0,92298.0,0.05270802]
[1763613681917,0.40388,92299.0,92298.0,0.05050999]
[1763613682213,0.40388,92299.0,92298.0,0.10903278]
[1763613682416,0.40388,92299.0,92298.0,0.05050999]
[1763613682619,0.40388,92299.0,92298.0,0.10903278]
[1763613683813,0.40388,92299.0,92298.0,0.06452278]
[1763613684413,0.40388,92299.0,92298.0,0.00599999]
[1763613685413,0.42789056,92299.0,92298.0,0.00599999]
[1763613686218,0.40388,92299.0,92298.0,0.00599999]
[1763613686718,0.40388,92299.0,92298.0,0.05050999]
[1763613689319,0.40388,92299.0,92298.0,0.02799999]
[1763613689711,0.40388,92299.0,92298.0,0.05049999]
[1763613689913,0.4278932,92299.0,92298.0,0.05049999]